[Event "New Zealand Rapid Championship"]
[Site "Wellington"]
[Date "2023.01.11"]
[Round "3.3"]
[White "Burns, Christopher J"]
[Black "Van Riemsdijk, Herman C."]
[Result "1/2-1/2"]
[TimeControl "25+5"]
[BlackTitle "IM"]
[WhiteFideId "4300920"]
[BlackFideId "2100053"]
[WhiteElo "2031"]
[BlackElo "2370"]

1. e4 {[%clk 00:25:09]} {[%emt 00:07:07]} e5 {[%clk 00:25:08]} {[%emt
00:00:02]} 2. Nf3 {[%clk 00:25:05]} {[%emt 00:00:09]} Nc6 {[%clk 00:25:11]}
{[%emt 00:00:03]} 3. d4 {[%clk 00:24:59]} {[%emt 00:00:12]} exd4 {[%clk
00:25:10]} {[%emt 00:00:06]} 4. Nxd4 {[%clk 00:24:54]} {[%emt 00:00:09]} Bc5
{[%clk 00:25:07]} {[%emt 00:00:07]} 5. Nxc6 {[%clk 00:24:35]} {[%emt 00:00:25]}
Qf6 {[%clk 00:25:05]} {[%emt 00:00:06]} 6. Qf3 {[%clk 00:24:33]} {[%emt
00:00:08]} Qxf3 {[%clk 00:24:53]} {[%emt 00:00:17]} 7. gxf3 {[%clk 00:24:36]}
{[%emt 00:00:02]} dxc6 {[%clk 00:24:49]} {[%emt 00:00:09]} 8. Be3 {[%clk
00:23:51]} {[%emt 00:00:51]} Bxe3 {[%clk 00:23:19]} {[%emt 00:01:35]} 9. fxe3
{[%clk 00:23:54]} {[%emt 00:00:03]} Ne7 {[%clk 00:23:15]} {[%emt 00:00:08]} 10.
Nc3 {[%clk 00:21:39]} {[%emt 00:02:20]} Be6 {[%clk 00:22:55]} {[%emt 00:00:24]}
11. Rd1 {[%clk 00:20:41]} {[%emt 00:01:03]} a5 {[%clk 00:22:17]} {[%emt
00:00:44]} 12. h4 {[%clk 00:20:24]} {[%emt 00:00:22]} b5 {[%clk 00:21:26]}
{[%emt 00:00:56]} 13. b3 {[%clk 00:20:09]} {[%emt 00:00:20]} a4 {[%clk
00:21:13]} {[%emt 00:00:18]} 14. b4 {[%clk 00:19:50]} {[%emt 00:00:24]} Nc8
{[%clk 00:20:14]} {[%emt 00:01:04]} 15. a3 {[%clk 00:18:44]} {[%emt 00:01:11]}
Nb6 {[%clk 00:20:09]} {[%emt 00:00:10]} 16. h5 {[%clk 00:17:42]} {[%emt
00:01:07]} Ke7 {[%clk 00:20:02]} {[%emt 00:00:12]} 17. Rg1 {[%clk 00:17:22]}
{[%emt 00:00:25]} g6 {[%clk 00:20:01]} {[%emt 00:00:05]} 18. h6 {[%clk
00:15:42]} {[%emt 00:01:45]} Rhd8 {[%clk 00:19:56]} {[%emt 00:00:10]} 19. f4
{[%clk 00:14:34]} {[%emt 00:01:13]} Rxd1+ {[%clk 00:18:31]} {[%emt 00:01:31]}
20. Kxd1 {[%clk 00:14:21]} {[%emt 00:00:18]} Bc4 {[%clk 00:18:04]} {[%emt
00:00:31]} 21. Bd3 {[%clk 00:13:42]} {[%emt 00:00:44]} Be6 {[%clk 00:17:14]}
{[%emt 00:00:56]} 22. Ke2 {[%clk 00:13:13]} {[%emt 00:00:34]} Rd8 {[%clk
00:16:28]} {[%emt 00:00:51]} 23. Nb1 {[%clk 00:11:19]} {[%emt 00:01:59]} f6
{[%clk 00:15:47]} {[%emt 00:00:46]} 24. Nd2 {[%clk 00:11:15]} {[%emt 00:00:09]}
Nd7 {[%clk 00:13:31]} {[%emt 00:02:22]} 25. c4 {[%clk 00:08:24]} {[%emt
00:02:56]} c5 {[%clk 00:13:13]} {[%emt 00:00:22]} 26. cxb5 {[%clk 00:07:00]}
{[%emt 00:01:30]} cxb4 {[%clk 00:13:10]} {[%emt 00:00:08]} 27. axb4 {[%clk
00:07:03]} {[%emt 00:00:02]} Nb6 {[%clk 00:12:48]} {[%emt 00:00:27]} 28. f5
{[%clk 00:06:37]} {[%emt 00:00:30]} Bf7 {[%clk 00:12:39]} {[%emt 00:00:14]} 29.
Rc1 {[%clk 00:06:20]} {[%emt 00:00:22]} Rd7 {[%clk 00:10:48]} {[%emt 00:01:56]}
30. e5 {[%clk 00:06:13]} {[%emt 00:00:14]} fxe5 {[%clk 00:07:57]} {[%emt
00:02:52]} 31. fxg6 {[%clk 00:06:07]} {[%emt 00:00:13]} hxg6 {[%clk 00:07:48]}
{[%emt 00:00:14]} 32. h7 {[%clk 00:05:49]} {[%emt 00:00:23]} Rd8 {[%clk
00:07:38]} {[%emt 00:00:15]} 33. Rxc7+ {[%clk 00:05:52]} {[%emt 00:00:02]} Nd7
{[%clk 00:07:33]} {[%emt 00:00:09]} 34. b6 {[%clk 00:05:45]} {[%emt 00:00:12]}
a3 {[%clk 00:07:25]} {[%emt 00:00:13]} 35. Ra7 {[%clk 00:05:16]} {[%emt
00:00:34]} a2 {[%clk 00:07:08]} {[%emt 00:00:23]} 36. Bb5 {[%clk 00:04:25]}
{[%emt 00:00:56]} Bd5 {[%clk 00:04:54]} {[%emt 00:02:19]} 37. e4 {[%clk
00:03:10]} {[%emt 00:01:20]} Be6 {[%clk 00:02:46]} {[%emt 00:02:13]} 38. Nc4
{[%clk 00:03:05]} {[%emt 00:00:10]} Rh8 {[%clk 00:02:26]} {[%emt 00:00:26]} 39.
Nxe5 {[%clk 00:02:43]} {[%emt 00:00:26]} a1=Q {[%clk 00:02:05]} {[%emt
00:00:27]} 40. Nc6+ {[%clk 00:01:14]} {[%emt 00:01:34]} Kf6 {[%clk 00:01:59]}
{[%emt 00:00:10]} 41. Rxa1 {[%clk 00:01:07]} {[%emt 00:00:12]} Nxb6 {[%clk
00:01:45]} {[%emt 00:00:18]} 42. Ra7 {[%clk 00:00:56]} {[%emt 00:00:16]} Nc8
{[%clk 00:01:26]} {[%emt 00:00:35]} 43. Ra6 {[%clk 00:00:45]} {[%emt 00:00:05]}
Kg7 {[%clk 00:01:15]} {[%emt 00:00:17]} 44. Nd4 {[%clk 00:00:36]} {[%emt
00:00:13]} Bg4+ {[%clk 00:01:09]} {[%emt 00:00:14]} 45. Ke3 {[%clk 00:00:37]}
{[%emt 00:00:01]} Rxh7 {[%clk 00:01:10]} {[%emt 00:00:04]} 46. Kf4 {[%clk
00:00:24]} {[%emt 00:00:18]} Bh3 {[%clk 00:00:57]} {[%emt 00:00:21]} 47. Nf3
{[%clk 00:00:26]} {[%emt 00:00:01]} Rh5 {[%clk 00:00:48]} {[%emt 00:00:13]} 48.
e5 {[%clk 00:00:27]} {[%emt 00:00:04]} Ne7 {[%clk 00:00:46]} {[%emt 00:00:07]}
49. Ra7 {[%clk 00:00:16]} {[%emt 00:00:17]} Kf8 {[%clk 00:00:48]} 50. Bc4
{[%clk 00:00:17]} {[%emt 00:00:04]} Bg2 {[%clk 00:00:43]} {[%emt 00:00:10]} 51.
Ra8+ {[%clk 00:00:11]} {[%emt 00:00:11]} Kg7 {[%clk 00:00:47]} {[%emt
00:00:01]} 52. Ra7 {[%clk 00:00:14]} {[%emt 00:00:02]} Rf5+ {[%clk 00:00:37]}
{[%emt 00:00:15]} 53. Kg3 {[%clk 00:00:11]} {[%emt 00:00:12]} Bxf3 {[%clk
00:00:40]} 54. Rxe7+ {[%clk 00:00:15]} Kf8 {[%clk 00:00:44]} 55. Ra7 {[%clk
00:00:14]} {[%emt 00:00:07]} Bh1 {[%clk 00:00:41]} {[%emt 00:00:06]} 56. e6
{[%clk 00:00:17]} {[%emt 00:00:10]} Re5 {[%clk 00:00:37]} {[%emt 00:00:01]} 57.
b5 {[%clk 00:00:20]} {[%emt 00:00:02]} Re1 {[%clk 00:00:22]} {[%emt 00:00:20]}
58. b6 {[%clk 00:00:19]} {[%emt 00:00:07]} Rb1 {[%clk 00:00:21]} {[%emt
00:00:06]} 59. e7+ {[%clk 00:00:10]} {[%emt 00:00:15]} Ke8 {[%clk 00:00:25]} 60.
b7 {[%clk 00:00:06]} {[%emt 00:00:09]} Bxb7 {[%clk 00:00:27]} {[%emt 00:00:02]}
61. Kf4 {[%clk 00:00:07]} {[%emt 00:00:04]} Kxe7 {[%clk 00:00:30]} {[%emt
00:00:02]} 62. Bd5 {[%clk 00:00:09]} {[%emt 00:00:06]} Rb4+ {[%clk 00:00:26]}
{[%emt 00:00:06]} 63. Kg5 {[%clk 00:00:12]} {[%emt 00:00:02]} Rb5 {[%clk
00:00:26]} {[%emt 00:00:05]} 64. Rxb7+ {[%clk 00:00:10]} {[%emt 00:00:07]}
1/2-1/2

[Event "New Zealand Rapid Championship"]
[Site "Wellington"]
[Date "2023.01.11"]
[Round "3.4"]
[White "Croad, Nicolas"]
[Black "Zhang, Kendrick Botong"]
[Result "1-0"]
[TimeControl "25+5"]
[WhiteTitle "FM"]
[BlackTitle "CM"]
[WhiteFideId "4300793"]
[BlackFideId "4307704"]
[WhiteElo "2309"]
[BlackElo "1870"]

1. d4 {[%clk 00:25:08]} {[%emt 00:00:01]} Nf6 {[%clk 00:25:08]} {[%emt
00:00:02]} 2. c4 {[%clk 00:25:12]} {[%emt 00:00:02]} g6 {[%clk 00:25:12]} 3.
Nc3 {[%clk 00:25:14]} {[%emt 00:00:03]} d5 {[%clk 00:25:16]} 4. Bf4 {[%clk
00:24:54]} {[%emt 00:00:26]} Bf5 {[%clk 00:23:46]} {[%emt 00:01:35]} 5. e3
{[%clk 00:24:45]} {[%emt 00:00:15]} b6 {[%clk 00:15:15]} {[%emt 00:08:36]} 6.
Nb5 {[%clk 00:24:21]} {[%emt 00:00:29]} e5 {[%clk 00:12:16]} {[%emt 00:03:03]}
7. Bxe5 {[%clk 00:23:50]} {[%emt 00:00:37]} Bb4+ {[%clk 00:12:19]} {[%emt
00:00:03]} 8. Nc3 {[%clk 00:23:38]} {[%emt 00:00:16]} O-O {[%clk 00:10:51]}
{[%emt 00:01:32]} 9. Nf3 {[%clk 00:23:31]} {[%emt 00:00:14]} Ne4 {[%clk
00:10:09]} {[%emt 00:00:46]} 10. Rc1 {[%clk 00:23:30]} {[%emt 00:00:06]} dxc4
{[%clk 00:10:08]} {[%emt 00:00:06]} 11. Bxc4 {[%clk 00:23:29]} {[%emt
00:00:05]} Nxc3 {[%clk 00:10:04]} {[%emt 00:00:10]} 12. bxc3 {[%clk 00:23:20]}
{[%emt 00:00:14]} Bd6 {[%clk 00:10:01]} {[%emt 00:00:07]} 13. O-O {[%clk
00:23:16]} {[%emt 00:00:09]} Be4 {[%clk 00:09:03]} {[%emt 00:01:03]} 14. Bxd6
{[%clk 00:22:57]} {[%emt 00:00:25]} Qxd6 {[%clk 00:08:20]} {[%emt 00:00:47]} 15.
Ne5 {[%clk 00:22:31]} {[%emt 00:00:31]} Nd7 {[%clk 00:08:04]} {[%emt 00:00:21]}
16. f4 {[%clk 00:21:26]} {[%emt 00:01:10]} Nxe5 {[%clk 00:06:39]} {[%emt
00:01:29]} 17. fxe5 {[%clk 00:21:28]} {[%emt 00:00:03]} Qe7 {[%clk 00:06:32]}
{[%emt 00:00:12]} 18. Rf6 {[%clk 00:21:19]} {[%emt 00:00:13]} Bf5 {[%clk
00:05:28]} {[%emt 00:01:09]} 19. Qb3 {[%clk 00:20:30]} {[%emt 00:00:54]} Rae8
{[%clk 00:03:03]} {[%emt 00:02:30]} 20. Rf1 {[%clk 00:20:30]} {[%emt 00:00:05]}
Be6 {[%clk 00:02:46]} {[%emt 00:00:23]} 21. Bxe6 {[%clk 00:19:36]} {[%emt
00:00:59]} fxe6 {[%clk 00:02:49]} {[%emt 00:00:02]} 22. h3 {[%clk 00:19:16]}
{[%emt 00:00:24]} c5 {[%clk 00:02:07]} {[%emt 00:00:47]} 23. R1f3 {[%clk
00:18:50]} {[%emt 00:00:32]} cxd4 {[%clk 00:01:57]} {[%emt 00:00:15]} 24. exd4
{[%clk 00:18:49]} {[%emt 00:00:05]} Qd7 {[%clk 00:01:38]} {[%emt 00:00:24]} 25.
Kh2 {[%clk 00:18:38]} {[%emt 00:00:17]} Qc6 {[%clk 00:01:01]} {[%emt 00:00:42]}
26. h4 {[%clk 00:18:00]} {[%emt 00:00:44]} Qe4 {[%clk 00:00:35]} {[%emt
00:00:31]} 27. Rxf8+ {[%clk 00:17:51]} {[%emt 00:00:13]} Rxf8 {[%clk 00:00:35]}
{[%emt 00:00:05]} 28. Qxe6+ {[%clk 00:17:54]} {[%emt 00:00:02]} Kg7 {[%clk
00:00:33]} {[%emt 00:00:07]} 29. Qe7+ {[%clk 00:17:57]} {[%emt 00:00:01]} 1-0

[Event "New Zealand Rapid Championship"]
[Site "Wellington"]
[Date "2023.01.11"]
[Round "3.5"]
[White "Young, Cohen"]
[Black "Xie, Felix"]
[Result "0-1"]
[TimeControl "25+5"]
[BlackTitle "CM"]
[WhiteFideId "4317440"]
[BlackFideId "4308174"]
[WhiteElo "1777"]
[BlackElo "2232"]

1. e4 {[%clk 00:25:09]} {[%emt 00:02:02]} c6 {[%clk 00:24:54]} {[%emt
00:00:16]} 2. d4 {[%clk 00:25:10]} {[%emt 00:00:04]} d5 {[%clk 00:24:56]}
{[%emt 00:00:03]} 3. e5 {[%clk 00:25:14]} {[%emt 00:00:01]} Bf5 {[%clk
00:24:59]} {[%emt 00:00:02]} 4. h4 {[%clk 00:25:18]} h5 {[%clk 00:25:03]} 5. c4
{[%clk 00:25:22]} e6 {[%clk 00:25:07]} {[%emt 00:00:01]} 6. Nc3 {[%clk
00:25:26]} Ne7 {[%clk 00:25:10]} {[%emt 00:00:03]} 7. Nge2 {[%clk 00:25:30]}
Nd7 {[%clk 00:25:13]} {[%emt 00:00:02]} 8. Ng3 {[%clk 00:25:34]} {[%emt
00:00:02]} Bg6 {[%clk 00:25:16]} {[%emt 00:00:01]} 9. cxd5 {[%clk 00:24:40]}
{[%emt 00:00:59]} cxd5 {[%clk 00:25:10]} {[%emt 00:00:12]} 10. Be2 {[%clk
00:19:36]} {[%emt 00:05:08]} Nf5 {[%clk 00:23:57]} {[%emt 00:01:19]} 11. Nxh5
{[%clk 00:19:02]} {[%emt 00:00:38]} Bxh5 {[%clk 00:21:13]} {[%emt 00:02:49]} 12.
Bxh5 {[%clk 00:19:00]} {[%emt 00:00:07]} g6 {[%clk 00:21:03]} {[%emt 00:00:16]}
13. Bg5 {[%clk 00:17:41]} {[%emt 00:01:22]} Qb6 {[%clk 00:19:35]} {[%emt
00:01:34]} 14. Bg4 {[%clk 00:16:50]} {[%emt 00:00:56]} Qxb2 {[%clk 00:17:40]}
{[%emt 00:02:02]} 15. Ne2 {[%clk 00:15:52]} {[%emt 00:01:03]} Bb4+ {[%clk
00:15:36]} {[%emt 00:02:09]} 16. Kf1 {[%clk 00:15:54]} {[%emt 00:00:02]} Rc8
{[%clk 00:14:10]} {[%emt 00:01:31]} 17. Rb1 {[%clk 00:14:59]} {[%emt 00:01:00]}
Qa3 {[%clk 00:14:13]} {[%emt 00:00:03]} 18. Qb3 {[%clk 00:12:47]} {[%emt
00:02:16]} Qxb3 {[%clk 00:12:40]} {[%emt 00:01:38]} 19. Rxb3 {[%clk 00:12:51]}
{[%emt 00:00:01]} Rc4 {[%clk 00:11:56]} {[%emt 00:00:49]} 20. Bxf5 {[%clk
00:12:10]} {[%emt 00:00:47]} gxf5 {[%clk 00:11:50]} {[%emt 00:00:11]} 21. a3
{[%clk 00:12:10]} {[%emt 00:00:04]} Be7 {[%clk 00:11:51]} {[%emt 00:00:04]} 22.
Bxe7 {[%clk 00:12:14]} {[%emt 00:00:02]} Kxe7 {[%clk 00:11:55]} {[%emt
00:00:01]} 23. Rxb7 {[%clk 00:12:10]} {[%emt 00:00:08]} Ra4 {[%clk 00:09:09]}
{[%emt 00:02:51]} 24. Rb3 {[%clk 00:11:37]} {[%emt 00:00:38]} Rc8 {[%clk
00:08:41]} {[%emt 00:00:35]} 25. g3 {[%clk 00:11:13]} {[%emt 00:00:26]} Rc2
{[%clk 00:07:58]} {[%emt 00:00:54]} 26. h5 {[%clk 00:10:44]} {[%emt 00:00:28]}
Nb6 {[%emt 00:00:40]} 27. h6 {[%clk 00:10:17]} {[%emt 00:00:30]} Rc8 {[%clk
00:07:24]} {[%emt 00:00:06]} 28. Kg2 {[%clk 00:10:03]} {[%emt 00:00:19]} Rh8
{[%clk 00:06:30]} {[%emt 00:00:59]} 29. Kf3 {[%clk 00:09:42]} {[%emt 00:00:26]}
f6 {[%clk 00:05:55]} {[%emt 00:00:41]} 30. Nf4 {[%clk 00:06:31]} {[%emt
00:03:15]} Kf7 {[%clk 00:05:07]} {[%emt 00:00:53]} 31. exf6 {[%clk 00:06:03]}
{[%emt 00:00:33]} Rxd4 {[%clk 00:04:30]} {[%emt 00:00:42]} 32. Re3 {[%clk
00:04:28]} {[%emt 00:01:41]} Re4 {[%clk 00:03:18]} {[%emt 00:01:16]} 33. Rc1
{[%clk 00:04:31]} {[%emt 00:00:01]} Rxh6 {[%clk 00:02:49]} {[%emt 00:00:35]} 34.
Rc7+ {[%clk 00:04:18]} {[%emt 00:00:19]} Kxf6 {[%clk 00:02:53]} {[%emt
00:00:01]} 35. Nxe6 {[%clk 00:03:41]} {[%emt 00:00:41]} Nc4 {[%clk 00:02:34]}
{[%emt 00:00:24]} 36. Nf4 {[%clk 00:02:16]} {[%emt 00:01:30]} Nxe3 {[%clk
00:02:19]} {[%emt 00:00:20]} 37. fxe3 {[%clk 00:02:19]} {[%emt 00:00:02]} Ra4
{[%clk 00:01:38]} {[%emt 00:00:41]} 38. Nxd5+ {[%clk 00:01:53]} {[%emt
00:00:36]} Kg5 {[%clk 00:01:40]} {[%emt 00:00:02]} 39. Nc3 {[%clk 00:00:59]}
{[%emt 00:01:01]} Rxa3 {[%clk 00:01:43]} {[%emt 00:00:08]} 40. Nb5 {[%clk
00:01:03]} Rb3 {[%clk 00:01:35]} {[%emt 00:00:09]} 41. Nd4 {[%clk 00:00:44]}
{[%emt 00:00:24]} Ra3 {[%clk 00:01:40]} 42. Nb5 {[%clk 00:00:48]} Rd3 {[%clk
00:01:27]} {[%emt 00:00:22]} 43. Rg7+ {[%clk 00:00:35]} {[%emt 00:00:13]} Kf6
{[%clk 00:00:50]} {[%emt 00:00:43]} 44. Rxa7 {[%clk 00:00:37]} {[%emt
00:00:02]} Rh1 {[%clk 00:00:53]} {[%emt 00:00:02]} 45. Nd4 {[%clk 00:00:23]}
{[%emt 00:00:23]} Re1 {[%clk 00:00:45]} {[%emt 00:00:13]} 46. Ra6+ {[%clk
00:00:26]} Kf7 {[%clk 00:00:28]} {[%emt 00:00:21]} 47. Ra7+ {[%clk 00:00:27]}
{[%emt 00:00:04]} Ke8 {[%clk 00:00:26]} {[%emt 00:00:07]} 48. Nxf5 {[%clk
00:00:28]} {[%emt 00:00:04]} Rf1+ {[%clk 00:00:17]} {[%emt 00:00:15]} 49. Ke4
{[%clk 00:00:32]} Rb3 {[%clk 00:00:18]} {[%emt 00:00:03]} 50. Ra8+ {[%emt
00:00:05]} Kd7 {[%clk 00:00:21]} 51. Ra7+ {[%clk 00:00:35]} {[%emt 00:00:03]}
Kd8 {[%clk 00:00:23]} {[%emt 00:00:02]} 52. Ra8+ {[%clk 00:00:39]} {[%emt
00:00:02]} Kc7 {[%clk 00:00:27]} {[%emt 00:00:02]} 53. Ra7+ {[%clk 00:00:41]}
{[%emt 00:00:02]} Kb6 {[%emt 00:00:10]} 54. Ra8 {[%clk 00:00:40]} Rb4+ {[%clk
00:00:33]} {[%emt 00:00:02]} 55. Nd4 {[%clk 00:00:41]} {[%emt 00:00:04]} Kc5
{[%clk 00:00:25]} {[%emt 00:00:14]} 56. Rc8+ {[%clk 00:00:37]} {[%emt
00:00:09]} Kd6 {[%clk 00:00:28]} 57. Rc6+ {[%clk 00:00:40]} {[%emt 00:00:03]}
Kd7 {[%clk 00:00:33]} {[%emt 00:00:09]} 58. Rh6 {[%clk 00:00:42]} Re1 {[%clk
00:00:32]} 59. Rh7+ {[%clk 00:00:45]} {[%emt 00:00:02]} Kd6 {[%clk 00:00:36]}
{[%emt 00:00:01]} 60. Rh6+ {[%clk 00:00:48]} {[%emt 00:00:02]} Ke7 {[%clk
00:00:41]} 61. Rh7+ {[%clk 00:00:50]} {[%emt 00:00:03]} Kf6 {[%clk 00:00:46]}
62. Rh4 {[%clk 00:00:51]} {[%emt 00:00:04]} Ra4 {[%clk 00:00:35]} {[%emt
00:00:16]} 63. Rf4+ {[%clk 00:00:48]} {[%emt 00:00:08]} Kg5 {[%clk 00:00:40]}
64. Kd3 {[%clk 00:00:42]} {[%emt 00:00:14]} Ra3+ {[%clk 00:00:44]} 65. Kc4
{[%clk 00:00:42]} {[%emt 00:00:02]} Rexe3 {[%clk 00:00:42]} {[%emt 00:00:07]}
66. Rf8 {[%clk 00:00:26]} {[%emt 00:00:22]} Ra4+ {[%clk 00:00:41]} {[%emt
00:00:07]} 67. Kd5 {[%clk 00:00:13]} {[%emt 00:00:17]} Rd3 {[%clk 00:00:45]}
{[%emt 00:00:01]} 68. Rg8 {[%clk 00:00:11]} {[%emt 00:00:07]} Kf6 {[%clk
00:00:44]} {[%emt 00:00:02]} 69. Rg4 {[%clk 00:00:14]} {[%emt 00:00:05]} Rd1
{[%clk 00:00:42]} {[%emt 00:00:07]} 70. Re4 {[%clk 00:00:16]} {[%emt 00:00:04]}
Kg5 {[%clk 00:00:44]} 71. Ke5 {[%clk 00:00:16]} {[%emt 00:00:06]} Ra5+ {[%clk
00:00:48]} {[%emt 00:00:01]} 72. Kd6 {[%clk 00:00:20]} {[%emt 00:00:01]} Ra3
{[%clk 00:00:49]} {[%emt 00:00:05]} 73. g4 {[%clk 00:00:19]} {[%emt 00:00:06]}
Ra8 {[%clk 00:00:44]} {[%emt 00:00:09]} 74. Kc7 {[%clk 00:00:16]} {[%emt
00:00:10]} Ra7+ {[%clk 00:00:42]} {[%emt 00:00:07]} 75. Kb6 {[%clk 00:00:16]}
{[%emt 00:00:05]} Rd7 {[%clk 00:00:17]} {[%emt 00:00:30]} 76. Kc5 {[%clk
00:00:19]} {[%emt 00:00:02]} Rc1+ {[%clk 00:00:21]} {[%emt 00:00:07]} 77. Kb5
{[%clk 00:00:19]} Rb7+ {[%clk 00:00:24]} {[%emt 00:00:05]} 78. Ka6 {[%clk
00:00:21]} Rb2 {[%clk 00:00:24]} {[%emt 00:00:03]} 79. Ne6+ {[%clk 00:00:12]}
{[%emt 00:00:16]} Kf6 {[%clk 00:00:28]} 80. g5 {[%clk 00:00:09]} {[%emt
00:00:08]} Kf5 {[%clk 00:00:31]} {[%emt 00:00:02]} 0-1

[Event "New Zealand Rapid Championship"]
[Site "Wellington"]
[Date "2023.01.11"]
[Round "3.6"]
[White "Carpinter, Anthony L"]
[Black "Park-Tamati, Philli"]
[Result "0-1"]
[TimeControl "25+5"]
[WhiteFideId "4300238"]
[BlackFideId "4309090"]
[WhiteElo "2147"]
[BlackElo "1861"]

1. Nf3 {[%clk 00:25:04]} {[%emt 00:00:05]} Nf6 {[%clk 00:25:08]} {[%emt
00:00:03]} 2. c4 {[%clk 00:24:52]} {[%emt 00:00:18]} e6 {[%clk 00:25:00]}
{[%emt 00:00:13]} 3. Nc3 {[%clk 00:24:41]} {[%emt 00:00:17]} b6 {[%clk
00:24:09]} {[%emt 00:00:56]} 4. g3 {[%clk 00:24:04]} {[%emt 00:00:40]} Bb7
{[%clk 00:23:49]} {[%emt 00:00:26]} 5. Bg2 {[%clk 00:24:00]} {[%emt 00:00:08]}
c5 {[%clk 00:23:50]} {[%emt 00:00:05]} 6. O-O {[%clk 00:23:50]} {[%emt
00:00:15]} Be7 {[%clk 00:23:53]} {[%emt 00:00:02]} 7. b3 {[%clk 00:23:34]}
{[%emt 00:00:21]} O-O {[%clk 00:23:51]} {[%emt 00:00:07]} 8. Bb2 {[%clk
00:23:34]} {[%emt 00:00:06]} d5 {[%clk 00:23:52]} {[%emt 00:00:12]} 9. cxd5
{[%clk 00:23:32]} Nxd5 {[%clk 00:23:56]} 10. Nxd5 {[%clk 00:21:36]} {[%emt
00:02:00]} Qxd5 {[%clk 00:23:32]} {[%emt 00:00:28]} 11. Rc1 {[%clk 00:19:15]}
{[%emt 00:02:27]} Nc6 {[%clk 00:21:46]} {[%emt 00:01:52]} 12. Ne5 {[%clk
00:16:44]} {[%emt 00:02:35]} Qd6 {[%clk 00:21:26]} {[%emt 00:00:25]} 13. f4
{[%clk 00:15:54]} {[%emt 00:00:55]} Rac8 {[%clk 00:16:20]} {[%emt 00:05:12]} 14.
d3 {[%clk 00:15:26]} {[%emt 00:00:32]} Rfd8 {[%clk 00:16:02]} {[%emt 00:00:17]}
15. Qd2 {[%clk 00:14:24]} {[%emt 00:01:12]} Qb8 {[%clk 00:15:45]} {[%emt
00:00:23]} 16. Nxc6 {[%clk 00:12:11]} {[%emt 00:02:18]} Bxc6 {[%clk 00:15:48]}
{[%emt 00:00:02]} 17. Bxc6 {[%clk 00:11:50]} {[%emt 00:00:26]} Rxc6 {[%clk
00:15:52]} {[%emt 00:00:01]} 18. Qe3 {[%clk 00:11:47]} {[%emt 00:00:07]} Qb7
{[%clk 00:14:20]} {[%emt 00:01:38]} 19. Rc2 {[%clk 00:10:46]} {[%emt 00:01:06]}
a5 {[%clk 00:14:01]} {[%emt 00:00:25]} 20. Qe4 {[%clk 00:09:49]} {[%emt
00:01:01]} Rc7 {[%clk 00:11:36]} {[%emt 00:02:30]} 21. Qxb7 {[%emt 00:01:11]}
Rxb7 22. Rfc1 {[%clk 00:08:03]} {[%emt 00:00:43]} Ra7 {[%clk 00:11:23]} {[%emt
00:00:15]} 23. a4 {[%clk 00:05:43]} {[%emt 00:02:28]} Rad7 {[%clk 00:10:53]}
{[%emt 00:00:34]} 24. Kf2 {[%clk 00:05:36]} {[%emt 00:00:09]} Bd6 {[%clk
00:10:30]} {[%emt 00:00:28]} 25. Rc4 {[%clk 00:05:33]} {[%emt 00:00:08]} Re7
{[%clk 00:10:24]} {[%emt 00:00:11]} 26. d4 {[%clk 00:04:34]} {[%emt 00:01:10]}
Red7 {[%clk 00:09:29]} {[%emt 00:00:55]} 27. e3 {[%clk 00:04:08]} {[%emt
00:00:31]} h5 {[%clk 00:09:09]} {[%emt 00:00:25]} 28. Kf3 {[%clk 00:04:11]}
{[%emt 00:00:01]} f6 {[%clk 00:08:22]} {[%emt 00:00:53]} 29. R1c2 {[%clk
00:04:15]} {[%emt 00:00:01]} Kf7 {[%clk 00:07:46]} {[%emt 00:00:41]} 30. Bc3
{[%clk 00:03:06]} {[%emt 00:01:14]} g5 {[%clk 00:06:01]} {[%emt 00:01:50]} 31.
fxg5 {[%clk 00:03:03]} {[%emt 00:00:08]} fxg5 {[%clk 00:06:04]} {[%emt
00:00:01]} 32. Ke4 {[%clk 00:02:50]} {[%emt 00:00:18]} Rb8 {[%clk 00:04:35]}
{[%emt 00:01:35]} 33. Rf2+ {[%clk 00:02:40]} {[%emt 00:00:15]} Ke7 {[%clk
00:02:41]} {[%emt 00:01:59]} 34. Bb2 {[%clk 00:02:41]} {[%emt 00:00:04]} g4
{[%clk 00:02:34]} {[%emt 00:00:13]} 35. Rcc2 {[%clk 00:02:14]} {[%emt
00:00:31]} Rc7 {[%clk 00:02:21]} {[%emt 00:00:19]} 36. Rc1 {[%clk 00:01:49]}
{[%emt 00:00:30]} Rf8 {[%clk 00:02:19]} {[%emt 00:00:07]} 37. Rxf8 {[%clk
00:01:45]} {[%emt 00:00:08]} Kxf8 {[%clk 00:02:24]} 38. Ba3 {[%clk 00:01:37]}
{[%emt 00:00:14]} Ke8 {[%clk 00:01:36]} {[%emt 00:00:53]} 39. dxc5 {[%clk
00:01:35]} {[%emt 00:00:07]} bxc5 {[%emt 00:00:08]} 40. Bb2 {[%clk 00:01:28]}
{[%emt 00:00:09]} Rb7 {[%clk 00:01:37]} {[%emt 00:00:04]} 41. Rc3 {[%clk
00:01:27]} {[%emt 00:00:07]} Rb4+ {[%clk 00:01:42]} {[%emt 00:00:01]} 42. Kd3
{[%clk 00:01:28]} {[%emt 00:00:03]} Ke7 {[%clk 00:01:46]} 43. Kc2 {[%clk
00:01:31]} {[%emt 00:00:02]} Rb8 {[%clk 00:01:46]} {[%emt 00:00:05]} 44. Ba3
{[%clk 00:01:34]} {[%emt 00:00:02]} Rf8 {[%clk 00:01:49]} {[%emt 00:00:07]} 45.
Bxc5 {[%clk 00:01:35]} Rf2+ {[%clk 00:01:48]} {[%emt 00:00:05]} 46. Kd3 {[%clk
00:01:40]} Rxh2 {[%clk 00:01:45]} {[%emt 00:00:07]} 47. Bxd6+ {[%clk 00:01:34]}
{[%emt 00:00:10]} Kxd6 {[%clk 00:01:49]} {[%emt 00:00:03]} 48. Rc8 {[%clk
00:01:23]} {[%emt 00:00:14]} Rb2 {[%clk 00:01:17]} {[%emt 00:00:37]} 49. Kc4
{[%clk 00:01:22]} {[%emt 00:00:07]} Rc2+ {[%clk 00:01:21]} {[%emt 00:00:02]}
0-1